bitfinex/quotes_SOLUSD_20250131
["timestamp","ask_amount","ask_price","bid_price","bid_amount"]
[1738335714695,0.03,237.51,237.48,20.54787811]
[1738335714892,30.0,237.49,237.48,20.54787811]
[1738335715224,30.0,237.49,237.48,20.67336811]
[1738335715420,30.0,237.49,237.48,34.08521664]
[1738335715814,30.0,237.49,237.48,38.29601664]
[1738335716317,0.03,237.51,237.48,38.29601664]
[1738335716626,0.03,237.51,237.5,20.54787811]
[1738335716827,30.03,237.51,237.5,20.54787811]
[1738335717523,0.03,237.51,237.5,20.54787811]
[1738335717918,0.03,237.51,237.5,24.75837811]
[1738335718422,0.03,237.51,237.5,38.29571664]
[1738335718652,0.03,237.51,237.5,38.54669664]
[1738335720800,0.03,237.51,237.5,38.29571664]
[1738335721832,0.03,237.51,237.5,38.67218664]
[1738335722133,0.03,237.53,237.52,0.50196]
[1738335722308,6.6957,237.67,237.57,0.12549]
[1738335722511,6.6957,237.67,237.6,20.54787811]
[1738335722723,30.0,237.61,237.6,20.54787811]
[1738335724633,30.0,237.61,237.6,38.29391664]
[1738335724833,2.4722,237.72,237.6,20.54787811]
[1738335725037,1.78900993,237.71,237.57,20.54787811]
[1738335725208,1.0,237.68,237.55,20.54787811]
[1738335725413,0.4207,237.66,237.55,20.54787811]
[1738335725631,0.78915517,237.65,237.55,20.54787811]
[1738335725821,0.4207,237.66,237.57,20.54787811]
[1738335726021,0.4207,237.69,237.61,20.54787811]
[1738335726246,30.0,237.62,237.61,13.41184853]
[1738335726539,0.4207,237.69,237.61,13.41184853]
[1738335726944,0.4207,237.69,237.6,13.41184853]
[1738335727241,0.4207,237.69,237.6,20.54787811]
[1738335727744,0.4206,237.7,237.6,20.54787811]
[1738335727942,1.20955109,237.7,237.61,20.54787811]
[1738335729838,1.20955109,237.7,237.6,20.54787811]
[1738335730034,1.20955109,237.7,237.62,20.54787811]
[1738335730240,30.0,237.63,237.6,20.54787811]
[1738335730418,30.0,237.63,237.59,40.54787811]
[1738335731422,30.0,237.63,237.6,20.54787811]
[1738335731727,30.0,237.63,237.59,20.54787811]
[1738335731918,30.0,237.63,237.6,20.54787811]
[1738335732124,30.0,237.63,237.62,20.54787811]
[1738335733017,30.0,237.63,237.62,34.08521664]
[1738335733532,30.0,237.63,237.62,40.28128664]
[1738335733733,8.9002,237.63,237.62,40.28128664]
[1738335733931,0.03,237.73,237.66,20.0]
[1738335734240,0.03,237.73,237.68,20.54787811]
[1738335734442,0.03,237.73,237.67,13.41184853]
[1738335734443,0.03,237.73,237.66,3.06]
[1738335734824,0.4506,237.73,237.66,3.06]
[1738335735240,0.78887929,237.72,237.66,3.06]
[1738335735416,0.78887929,237.72,237.6,20.54787811]
[1738335735417,0.4206,237.71,237.6,13.41184853]
[1738335735621,0.78898395,237.7,237.61,20.54787811]
[1738335735817,0.4206,237.71,237.61,20.54787811]
[1738335735818,0.4206,237.71,237.63,20.54787811]
[1738335736022,0.03,237.73,237.66,20.54787811]
[1738335736318,0.03,237.73,237.67,20.54787811]
[1738335736561,0.03,237.73,237.68,13.41184853]
[1738335737146,0.03,237.73,237.69,13.41184853]
[1738335737452,0.03,237.73,237.67,13.41184853]
[1738335737650,0.03,237.73,237.72,20.54787811]
[1738335737830,0.03,237.73,237.72,13.41184853]
[1738335738150,0.03,237.73,237.72,34.08521664]
[1738335738353,0.03,237.73,237.72,32.45972664]
[1738335738544,0.03,237.73,237.72,11.91184853]
[1738335738729,0.03,237.73,237.72,32.45972664]
[1738335739550,0.03,237.73,237.72,32.58521664]
[1738335739724,0.03,237.73,237.72,53.38407475]
[1738335740128,0.03,237.73,237.72,32.58521664]
[1738335740447,0.03,237.73,237.72,32.45972664]
[1738335741661,0.03,237.73,237.72,11.91184853]
[1738335741963,0.03,237.73,237.7,3.06]
[1738335742460,0.03,237.73,237.71,13.41184853]
[1738335742752,0.15549,237.73,237.61,23.60787811]
[1738335742939,1.78894668,237.72,237.61,13.41184853]
[1738335743135,0.78894668,237.72,237.62,20.54787811]
[1738335743340,0.81883003,237.73,237.63,13.41184853]
[1738335743536,0.03,237.73,237.66,20.54787811]
[1738335743749,0.03,237.73,237.7,13.41184853]
[1738335743949,0.03,237.73,237.72,13.41184853]
[1738335744742,0.03,237.73,237.67,20.54787811]
[1738335744938,0.03,237.73,237.63,20.54787811]
[1738335745135,0.03,237.73,237.66,13.41184853]
[1738335745470,0.03,237.73,237.68,13.41184853]
[1738335745762,0.03,237.73,237.7,13.41184853]
[1738335745946,0.03,237.73,237.71,20.54787811]
[1738335746146,0.03,237.73,237.72,13.41184853]
[1738335746346,0.03,237.73,237.7,13.41184853]
[1738335746551,0.03,237.73,237.71,20.54787811]
[1738335747441,0.03,237.73,237.72,13.41184853]
[1738335748340,0.03,237.73,237.72,13.53733853]
[1738335748939,0.03,237.73,237.72,15.15273853]
[1738335749141,0.03,237.73,237.72,15.40371853]
[1738335749655,0.03,237.73,237.72,40.15819664]
[1738335749857,0.03,237.73,237.72,19.61031853]
[1738335751135,0.03,237.73,237.72,19.35933853]
[1738335751463,0.03,237.73,237.72,22.29384853]
[1738335752664,0.03,237.73,237.72,22.67031853]
[1738335753555,0.03,237.73,237.72,22.41933853]
[1738335753856,0.03,237.73,237.72,22.29384853]
[1738335754062,0.03,237.73,237.72,22.67031853]
[1738335754453,0.03,237.73,237.72,22.29384853]
[1738335754942,0.03,237.73,237.72,22.67031853]
[1738335756455,0.03,237.73,237.72,20.67844853]
[1738335757471,0.03,237.73,237.71,20.54787811]
[1738335758175,0.03,237.73,237.69,13.41184853]
[1738335758337,0.03,237.73,237.64,10.5199]
[1738335758338,0.03,237.73,237.64,13.41184853]
[1738335758542,6.525,237.73,237.64,13.41184853]
[1738335758753,0.78888149,237.72,237.63,13.47484853]
[1738335758955,6.525,237.73,237.64,0.5348035]
[1738335759355,0.78888959,237.72,237.64,0.5348035]
[1738335759648,0.8413,237.71,237.63,0.063]
[1738335759950,0.78894538,237.7,237.63,0.063]
[1738335760157,20.78894538,237.7,237.63,0.063]
[1738335760334,1.0,237.68,237.63,0.063]
[1738335760540,21.78894538,237.7,237.63,0.063]
[1738335760541,0.78917447,237.67,237.63,0.063]
[1738335760757,0.78906085,237.69,237.63,0.063]
[1738335760951,0.12549,237.68,237.63,0.063]
[1738335761154,1.78911941,237.67,237.63,0.063]
[1738335761366,0.78911941,237.67,237.63,0.063]
[1738335761544,0.8415,237.66,237.63,0.063]
[1738335761750,0.78909476,237.65,237.63,0.063]
[1738335763546,0.8415,237.66,237.63,0.063]
[1738335766364,0.7890593,237.65,237.63,0.063]
[1738335767751,21.7890593,237.65,237.63,0.063]
[1738335767948,7.2124,237.64,237.63,0.063]
[1738335768353,8.054,237.64,237.63,0.063]
[1738335769786,0.7890593,237.65,237.63,0.063]
[1738335770382,1.6304968,237.68,237.63,0.063]
[1738335771586,0.12549,237.65,237.63,0.063]
[1738335771883,0.78915352,237.64,237.63,0.063]
[1738335772585,1.63075352,237.64,237.63,0.063]
[1738335773184,1.75624352,237.64,237.63,0.063]
[1738335773687,1.63075352,237.64,237.63,0.063]
[1738335773886,0.78915352,237.64,237.63,0.063]
[1738335774067,1.63059647,237.65,237.63,0.063]
[1738335774274,2.63059647,237.65,237.63,0.063]
[1738335774565,1.63059647,237.65,237.63,0.063]
[1738335775289,0.7891041,237.66,237.63,0.063]
[1738335775586,1.6306041,237.66,237.63,0.063]
[1738335779403,0.12549,237.65,237.63,0.063]
[1738335779580,0.78922593,237.64,237.63,0.063]
[1738335779977,0.91471593,237.64,237.63,0.063]
[1738335780178,20.91471593,237.64,237.63,0.063]
[1738335780377,21.04020593,237.64,237.63,0.063]
[1738335780573,2.04020593,237.64,237.63,0.0001]
[1738335780773,0.12549,237.6,237.53,0.063]
[1738335780970,0.7894306,237.59,237.53,0.063]
[1738335781267,0.8418,237.58,237.53,0.063]
[1738335781499,0.78942941,237.57,237.53,0.063]
[1738335782803,0.7892743,237.56,237.53,0.063]
[1738335782978,0.78939594,237.58,237.53,0.063]
[1738335783183,0.8418,237.57,237.53,0.063]
[1738335783381,0.78941466,237.56,237.53,0.063]
[1738335783615,0.12549,237.62,237.53,0.063]
[1738335783616,20.0,237.62,237.53,0.063]
[1738335783913,3.0549145,237.68,237.58,20.54787811]
[1738335783914,1.63073056,237.67,237.58,20.54787811]
[1738335784095,0.12549,237.66,237.56,20.54787811]
[1738335784411,0.78917921,237.65,237.57,0.53539802]
[1738335784581,0.78917921,237.65,237.57,21.08327613]
[1738335784789,1.63050927,237.69,237.59,20.54787811]
[1738335784988,1.63050927,237.69,237.6,0.53513039]
[1738335785315,20.0,237.67,237.6,4.74383039]
[1738335785493,1.63050927,237.69,237.61,20.54787811]
[1738335785697,21.63025899,237.71,237.63,20.54787811]
[1738335786024,1.25098,237.7,237.57,21.08284436]
[1738335786184,0.25098,237.68,237.57,0.53496625]
[1738335786379,0.7891269,237.67,237.58,20.54787811]
[1738335786595,0.78903472,237.69,237.59,0.53511588]
[1738335787323,1.0,237.67,237.56,24.14301921]
[1738335787489,0.78915598,237.66,237.56,24.14301921]
[1738335787909,0.78915598,237.66,237.53,0.063]
[1738335787910,1.0,237.64,237.53,0.063]
[1738335788210,1.0,237.62,237.53,0.063]
[1738335788393,0.78940345,237.61,237.53,0.063]
[1738335788989,16.35684853,237.68,237.58,13.41184853]
[1738335788990,0.78929772,237.67,237.58,13.41184853]
[1738335789216,0.78929772,237.67,237.59,0.53516809]
[1738335789411,1.63079772,237.67,237.57,20.54787811]
[1738335789615,1.63079772,237.67,237.55,13.41184853]
[1738335789616,2.63079772,237.67,237.55,21.08321996]
[1738335789916,0.12549,237.64,237.54,0.53534185]
[1738335790098,0.78924191,237.63,237.54,0.53534185]
[1738335790982,0.78920509,237.65,237.55,13.41184853]
[1738335791186,0.78906033,237.68,237.6,20.54787811]
[1738335791383,0.78906033,237.68,237.56,0.5351671]
[1738335791384,1.63039783,237.7,237.62,20.54787811]
[1738335791587,1.63039783,237.7,237.63,0.53491674]
[1738335792095,1.63039783,237.7,237.62,20.54787811]
[1738335792295,1.63039783,237.7,237.62,21.08287171]
[1738335792491,0.78893367,237.71,237.62,25.29117171]
[1738335792793,0.78893367,237.71,237.63,35.50332664]
[1738335792987,0.81887866,237.72,237.65,20.54787811]
[1738335793384,0.03,237.72,237.66,0.53473592]
[1738335793615,0.03,237.72,237.65,0.53467634]
[1738335793811,0.78887323,237.71,237.63,1.5436]
[1738335794015,0.78887323,237.71,237.61,21.08267101]
[1738335794316,0.78887323,237.71,237.59,20.54787811]
[1738335794496,0.8413,237.7,237.59,13.41184853]
[1738335794694,20.78902918,237.69,237.6,0.5351048]
[1738335794894,20.78902918,237.69,237.61,20.54787811]
[1738335795093,20.78902918,237.69,237.62,0.53499645]
[1738335795293,30.0,237.66,237.6,21.08287714]
[1738335795515,30.0,237.66,237.62,20.54787811]
[1738335795830,30.0,237.66,237.63,0.53491958]
[1738335796119,30.0,237.66,237.63,21.08279769]
[1738335796490,30.0,237.66,237.65,20.54787811]
[1738335796699,30.0,237.66,237.65,21.08268517]
[1738335797615,30.0,237.66,237.61,38.16812664]
[1738335797820,30.0,237.66,237.62,0.53490518]
[1738335798005,30.0,237.66,237.62,21.08278329]
[1738335798203,30.0,237.66,237.64,20.54787811]
[1738335798404,30.0,237.66,237.65,0.53476951]
[1738335798810,30.0,237.66,237.65,30.90453373]
[1738335799205,0.03,237.72,237.66,13.41184853]
[1738335799539,0.03,237.72,237.7,12.75011569]
[1738335799821,0.03,237.72,237.71,0.53435748]
[1738335800186,0.03,237.72,237.71,13.28447317]
[1738335800617,0.03,237.72,237.71,0.53435748]
[1738335800825,0.03,237.72,237.7,20.92352937]
[1738335800996,0.03,237.72,237.7,25.13042937]
[1738335801197,0.03,237.72,237.71,13.41184853]
[1738335803024,0.03,237.72,237.71,17.61864853]
[1738335804036,0.03,237.72,237.71,38.13325596]
[1738335804520,0.8408,237.86,237.72,13.91380853]
[1738335804722,1.62916373,237.88,237.76,13.53733853]
[1738335805026,0.8407,237.88,237.77,0.53366531]
[1738335805206,0.8407,237.88,237.79,20.38911743]
[1738335805411,0.8407,237.88,237.8,13.94551217]
[1738335805636,30.0,237.81,237.8,13.94551217]
[1738335805921,30.0,237.81,237.8,34.3346296]
[1738335806425,0.78830697,237.89,237.8,13.94551217]
[1738335806615,0.8407,237.88,237.8,13.94551217]
[1738335806791,1.6290253,237.88,237.8,13.94551217]
[1738335806994,0.8407,237.88,237.8,13.94551217]
[1738335807223,0.78832435,237.89,237.8,13.94551217]
[1738335807402,0.8406,237.9,237.82,13.41184853]
[1738335807727,0.8406,237.9,237.83,0.53351634]
[1738335808094,0.788252,237.89,237.82,0.53355044]
[1738335808300,0.8407,237.88,237.82,13.41184853]
[1738335809400,0.8407,237.88,237.84,13.41184853]
[1738335809901,0.8407,237.88,237.79,26.11001743]
[1738335810114,0.8407,237.88,237.8,13.94550086]
[1738335810317,0.8406,237.9,237.8,13.94550086]
[1738335810521,1.62890329,237.9,237.8,34.33461829]
[1738335810711,0.8406,237.9,237.82,13.41184853]
[1738335810911,0.78824266,237.89,237.83,0.53353175]
[1738335811225,0.78824266,237.89,237.82,13.41184853]
[1738335811417,0.78824266,237.89,237.81,13.41184853]
[1738335812222,2.9426,237.88,237.78,13.41184853]
[1738335812406,20.78844871,237.87,237.78,13.41184853]
[1738335812613,20.78844871,237.87,237.75,13.41184853]
[1738335812832,0.78844871,237.87,237.75,13.41184853]
[1738335813026,0.25098,237.84,237.73,1.5256]
[1738335813204,0.7885901,237.83,237.74,13.41184853]
[1738335813523,0.7885901,237.83,237.75,0.53417427]
[1738335813698,0.78851517,237.86,237.75,0.53417427]
[1738335814096,20.78851517,237.86,237.74,13.41184853]
[1738335814407,26.3902,237.84,237.73,1.5256]
[1738335814604,0.78861963,237.83,237.73,1.5256]
[1738335815326,0.8409,237.82,237.74,13.94609078]
[1738335815512,0.7885397,237.81,237.74,13.94609078]
[1738335815915,0.7885397,237.81,237.73,1.5256]
[1738335816827,0.7885397,237.81,237.67,0.53422643]
[1738335816828,0.25098,237.78,237.67,0.53422643]
[1738335817025,0.788785,237.77,237.68,33.80096596]
[1738335817199,0.788785,237.77,237.7,13.41184853]
[1738335817401,0.841,237.79,237.7,13.41184853]
[1738335817601,0.78869412,237.78,237.66,22.00781743]
[1738335817803,0.78869412,237.78,237.67,13.41184853]
[1738335819527,20.0,237.75,237.61,4.6933]
[1738335819723,6.99871659,237.74,237.62,13.94672814]
[1738335820633,6.99871659,237.74,237.64,20.38911743]
[1738335820824,0.78891659,237.74,237.65,0.53464439]
[1738335821030,22.9439,237.77,237.61,5.8418]
[1738335821031,0.7888522,237.73,237.62,13.41184853]
[1738335821221,0.7888522,237.73,237.62,13.94676896]
[1738335821418,0.8413,237.72,237.61,2.16819249]
[1738335821628,0.8413,237.72,237.61,0.063]
[1738335821629,0.78898484,237.71,237.61,0.063]
[1738335821830,0.78898484,237.71,237.61,0.59805979]
[1738335822029,0.78898484,237.71,237.62,13.41184853]
[1738335822233,0.8413,237.72,237.64,26.16032417]
[1738335822520,0.8413,237.72,237.65,0.53466488]
[1738335823040,0.78886525,237.75,237.66,13.41184853]
[1738335823240,0.7887627,237.78,237.68,12.74847564]
[1738335823448,0.8411,237.77,237.69,26.69484871]
[1738335823756,0.78868991,237.76,237.69,13.94637307]
[1738335823924,0.78868991,237.76,237.68,13.28301796]
[1738335824124,0.78868991,237.76,237.68,0.53454232]
[1738335824720,20.8411,237.77,237.69,26.16032417]
[1738335824939,0.8411,237.77,237.7,13.28287738]
[1738335825821,0.8411,237.77,237.7,0.53440174]
[1738335826645,0.78869337,237.79,237.7,0.53440174]
[1738335826822,0.8411,237.78,237.7,0.53440174]
[1738335827017,0.78868303,237.77,237.7,0.53440174]
[1738335827218,0.78868303,237.77,237.7,30.53440174]
[1738335827646,0.78868303,237.77,237.71,13.41184853]
[1738335827941,0.8411,237.79,237.73,13.41184853]
[1738335828146,0.841,237.8,237.74,0.53421265]
[1738335828366,0.841,237.8,237.73,30.0]
[1738335828517,0.841,237.8,237.74,0.53415781]
[1738335828719,0.78858311,237.81,237.74,0.53415781]
[1738335829033,1.62958311,237.81,237.74,0.53415781]
[1738335829248,1.62958311,237.81,237.74,30.53415781]
[1738335829744,0.25098,237.8,237.74,30.0]
[1738335830050,0.25098,237.77,237.69,0.063]
[1738335830249,20.0,237.78,237.69,0.063]
[1738335830250,0.78878557,237.76,237.69,0.063]
[1738335830415,0.841,237.81,237.71,12.74847564]
[1738335830616,0.78861413,237.8,237.7,0.5342747]
[1738335830936,0.25098,237.79,237.69,0.063]
[1738335831117,0.78877001,237.78,237.69,0.063]
[1738335831627,0.06186703,237.76,237.69,0.063]
[1738335831828,0.8412,237.75,237.69,0.063]
[1738335832057,0.06186703,237.76,237.7,0.53455188]
[1738335832430,0.06186703,237.76,237.71,26.16032417]
[1738335832740,0.06186703,237.76,237.73,13.41184853]
[1738335832942,0.06186703,237.76,237.74,0.53419448]
[1738335833448,0.06186703,237.76,237.75,13.41184853]
[1738335833820,0.06186703,237.76,237.74,0.53419448]
[1738335834127,0.06186703,237.76,237.72,0.53421107]
[1738335834334,0.06186703,237.76,237.7,13.41184853]
[1738335834536,0.06186703,237.76,237.71,0.5343385]
[1738335835931,0.06186703,237.76,237.72,13.41184853]
[1738335836234,0.06186703,237.76,237.74,13.41184853]
[1738335836442,0.06186703,237.76,237.75,0.53398749]
[1738335836845,0.06186703,237.76,237.75,26.69431166]
[1738335837244,0.06186703,237.76,237.75,13.94583602]
[1738335838343,0.06186703,237.76,237.75,0.53398749]
[1738335838655,0.06186703,237.76,237.7,13.41184853]
[1738335839029,0.06186703,237.76,237.69,4.27]
[1738335839030,0.06186703,237.76,237.69,0.063]
[1738335839354,0.90296703,237.76,237.69,13.47484853]
[1738335839727,0.90296703,237.76,237.7,0.063]
[1738335840535,0.78868651,237.75,237.7,0.063]
[1738335840947,20.0,237.71,237.7,0.063]
[1738335841461,20.0,237.71,237.69,0.063]
[1738335841648,1.0,237.69,237.61,0.063]
[1738335841855,0.78913311,237.68,237.61,0.063]
[1738335842228,1.78913311,237.68,237.61,0.063]
[1738335842429,20.0,237.66,237.61,0.063]
[1738335842766,0.78921775,237.65,237.61,0.063]
[1738335842933,20.78921775,237.65,237.61,0.063]
[1738335843257,6.1815,237.64,237.61,0.063]
[1738335843440,20.0,237.61,237.53,0.063]
[1738335843643,0.78946475,237.6,237.53,0.063]
[1738335844540,1.09268,237.59,237.53,0.063]
[1738335844743,0.25098,237.57,237.53,0.063]
[1738335847050,0.78962003,237.54,237.53,0.063]
[1738335847759,7.83372003,237.54,237.53,0.063]
[1738335847954,8.08470003,237.54,237.53,0.063]
[1738335848165,20.0,237.51,237.49,0.063]
[1738335848461,1.04069624,237.5,237.49,0.063]
[1738335848762,1.63181624,237.5,237.49,0.063]
[1738335848936,0.78971624,237.5,237.49,0.063]
[1738335850866,0.78957829,237.53,237.49,0.063]
[1738335851173,0.8418,237.57,237.5,20.43558343]
[1738335851367,0.78943663,237.56,237.51,20.43558343]
[1738335851946,1.63113338,237.59,237.5,22.05108343]
[1738335852277,20.0,237.58,237.5,1.6155]
[1738335852460,0.78941279,237.57,237.5,1.6155]
[1738335852649,1.63121279,237.57,237.5,22.58694904]
[1738335852971,1.63121279,237.57,237.5,22.05108343]
[1738335853347,0.78941279,237.57,237.5,22.05108343]
[1738335853647,0.78941279,237.57,237.52,20.43558343]
[1738335853871,0.7893662,237.6,237.54,20.43558343]
[1738335854180,0.7893662,237.6,237.53,20.43558343]
[1738335854478,1.6310662,237.6,237.51,20.43558343]
[1738335854650,1.6310662,237.6,237.51,20.97121378]
[1738335854970,1.6310662,237.6,237.51,20.43558343]
[1738335855268,1.6310662,237.6,237.52,20.97123487]
[1738335855649,0.8417,237.62,237.55,20.43558343]
[1738335855963,1.63089198,237.62,237.56,20.43558343]
[1738335856171,0.8417,237.62,237.57,20.97100698]
[1738335856380,0.8417,237.62,237.58,20.43558343]
[1738335856752,0.90346703,237.64,237.6,20.43558343]
[1738335857048,0.90346703,237.64,237.59,20.43558343]
[1738335857263,0.90346703,237.64,237.57,20.43558343]
[1738335857449,0.78911883,237.63,237.56,20.43558343]
[1738335857778,0.78911883,237.63,237.51,20.43558343]
[1738335857942,0.78911883,237.63,237.52,20.43558343]
[1738335858146,0.78911883,237.63,237.54,20.43558343]
[1738335858351,0.78911883,237.63,237.57,20.43558343]
[1738335858651,0.78911883,237.63,237.56,20.43558343]
[1738335858858,0.8416,237.62,237.54,20.43558343]
[1738335859055,0.78922305,237.61,237.51,34.38281214]
[1738335859261,0.78922305,237.61,237.51,33.84743196]
[1738335860472,0.78922305,237.61,237.53,33.84743196]
[1738335860771,0.8416,237.62,237.56,20.43558343]
[1738335860973,0.8416,237.63,237.54,0.53545401]
[1738335861174,0.06186703,237.64,237.62,20.43558343]
[1738335861389,0.06186703,237.64,237.63,20.97045287]
[1738335861544,0.06186703,237.64,237.63,34.3823014]
[1738335861751,0.06186703,237.64,237.63,34.7587714]
[1738335862280,0.06186703,237.64,237.63,34.3823014]
[1738335862581,0.03,237.69,237.64,13.53733853]
[1738335862761,0.03,237.69,237.68,33.84743196]
[1738335862956,0.03,237.69,237.68,38.05473196]
[1738335863444,0.03,237.69,237.68,38.18022196]
[1738335863949,0.03,237.69,237.68,38.71434136]
[1738335864346,0.81853209,237.87,237.71,20.0]
[1738335864567,0.8408,237.86,237.76,20.43558343]
[1738335864769,0.78846584,237.85,237.77,0.53397811]
[1738335865069,1.62926584,237.85,237.78,20.43558343]
[1738335865471,21.62926584,237.85,237.78,20.43558343]
[1738335865682,0.8408,237.85,237.78,20.43558343]
[1738335866057,20.8408,237.85,237.78,20.43558343]
[1738335866273,0.78844221,237.84,237.76,20.43558343]
[1738335866664,0.78844221,237.84,237.77,0.53401629]
[1738335867166,0.8409,237.83,237.76,20.43558343]
[1738335868979,0.8409,237.83,237.75,13.41184853]
[1738335869171,0.8409,237.83,237.76,0.53403338]
[1738335869474,0.78849347,237.82,237.75,0.53403338]
[1738335870048,1.62942151,237.83,237.76,20.43558343]
[1738335870669,1.62942151,237.83,237.75,0.53403338]
[1738335871073,1.62942151,237.83,237.69,33.84743196]
[1738335871074,3.73172151,237.83,237.69,33.84743196]
[1738335871282,3.73172151,237.83,237.7,0.53433964]
[1738335871452,3.73172151,237.83,237.69,0.53434508]
[1738335872275,20.0,237.81,237.69,0.53434508]
[1738335872459,0.78867762,237.8,237.7,13.41184853]
[1738335872657,0.78867762,237.8,237.72,20.43558343]
[1738335872892,3.73183347,237.83,237.73,13.94616191]
[1738335873060,0.78853476,237.82,237.73,0.53431338]
[1738335873260,0.78853476,237.82,237.68,22.07468343]
[1738335873555,22.9435,237.81,237.68,2.17357132]
[1738335873883,20.788743,237.8,237.68,2.17357132]
[1738335874057,20.0,237.76,237.63,13.41184853]
[1738335874262,0.78893082,237.75,237.63,13.41184853]
[1738335874875,0.25098,237.74,237.62,2.06527974]
[1738335875176,0.25098,237.72,237.59,13.94681181]
[1738335875352,0.78904575,237.71,237.59,13.94681181]
[1738335875555,0.8413,237.7,237.59,13.94681181]
[1738335875755,0.78899978,237.69,237.59,13.94681181]
[1738335876170,0.78899978,237.69,237.59,13.41184853]
[1738335876781,0.8413,237.7,237.63,13.41184853]
[1738335876782,0.78904392,237.7,237.63,13.41184853]
[1738335876969,0.78888908,237.73,237.66,20.43558343]
[1738335877168,0.8411,237.77,237.69,20.43558343]
[1738335877477,0.78870735,237.78,237.71,20.43558343]
[1738335877855,20.0,237.76,237.69,20.97000881]
[1738335878064,0.78876989,237.75,237.67,20.43558343]
[1738335878580,0.78876989,237.75,237.68,0.53461464]
[1738335878887,0.03,237.8,237.73,20.43558343]
[1738335879075,0.03,237.8,237.74,0.53418439]
[1738335879383,0.03,237.8,237.77,20.43558343]
[1738335879795,0.03,237.8,237.76,0.53409078]
[1738335879966,0.03,237.8,237.76,0.53411317]
[1738335880179,0.03,237.8,237.77,20.43558343]
[1738335880368,0.03,237.8,237.76,0.53411317]
[1738335881084,0.03,237.8,237.74,20.43558343]
[1738335881287,0.03,237.8,237.71,13.41184853]
[1738335881288,0.03,237.8,237.72,20.96982062]
[1738335881488,0.03,237.8,237.73,13.41184853]
[1738335881677,0.03,237.8,237.75,13.41184853]
[1738335882002,0.03,237.8,237.76,0.53406839]
[1738335882168,0.03,237.8,237.75,0.53406839]
[1738335882977,0.03,237.8,237.73,34.38149259]
[1738335883284,0.03,237.8,237.72,4.2065]
[1738335883285,0.81853762,237.8,237.75,13.41184853]
[1738335883490,0.03,237.8,237.74,13.41184853]
[1738335883800,0.03,237.8,237.73,0.53410851]
[1738335883978,0.03,237.8,237.74,13.41184853]
[1738335884186,0.03,237.8,237.75,0.53410642]
[1738335884488,0.03,237.8,237.74,0.53408241]
[1738335884671,0.03,237.8,237.73,20.9697812]
[1738335884873,0.03,237.8,237.74,13.41184853]
[1738335885068,0.03,237.8,237.75,0.53408549]
[1738335886789,0.03,237.8,237.74,18.15203626]
[1738335887093,0.03,237.8,237.75,13.41184853]
[1738335887986,0.03,237.8,237.76,0.53408565]
[1738335888178,0.03,237.8,237.75,13.9459085]
[1738335889072,0.03,237.8,237.75,18.1518085]
[1738335890389,0.03,237.8,237.75,38.58739193]
[1738335892187,0.03,237.8,237.78,13.41184853]
[1738335892503,0.03,237.8,237.78,13.9457469]
[1738335892893,0.03,237.8,237.78,13.41184853]
[1738335894199,0.03,237.8,237.75,4.2059]
[1738335894392,0.03,237.8,237.76,0.5340432]
[1738335894580,0.03,237.8,237.77,13.41184853]
[1738335894782,0.03,237.8,237.76,0.5340432]
[1738335894981,0.03,237.8,237.75,13.41184853]
[1738335895804,0.03,237.8,237.77,26.15351064]
[1738335896198,0.03,237.8,237.79,13.41184853]
[1738335897807,0.03,237.8,237.74,12.74166211]
[1738335898015,0.03,237.8,237.76,13.41184853]
[1738335898179,0.03,237.8,237.78,13.41184853]
[1738335898379,0.03,237.8,237.75,13.9456882]
[1738335898976,0.03,237.8,237.76,12.74166211]
[1738335899293,0.03,237.8,237.76,0.53378889]
[1738335899496,0.03,237.8,237.75,13.41184853]
[1738335899698,0.03,237.8,237.74,13.41184853]
[1738335900086,0.03,237.8,237.75,0.53418262]
[1738335900696,0.03,237.8,237.74,13.94598327]
[1738335901195,0.03,237.8,237.75,12.74166211]
[1738335901395,0.03,237.8,237.79,26.15351064]
[1738335902184,0.03,237.8,237.79,28.09878064]